bitfinex/quotes_BTCUSD_20250422
["timestamp","ask_amount","ask_price","bid_price","bid_amount"]
[1745322290254,1.4165472,88445.0,88444.0,92.94142938]
[1745322290696,1.3175472,88445.0,88444.0,92.94142938]
[1745322291657,1.3175472,88445.0,88444.0,92.93142938]
[1745322292008,1.24643081,88445.0,88444.0,92.93142938]
[1745322292198,1.29643081,88445.0,88444.0,92.93142938]
[1745322292641,1.34911036,88445.0,88444.0,92.93142938]
[1745322293476,1.24643081,88445.0,88444.0,92.93142938]
[1745322294527,0.89586179,88445.0,88444.0,92.93142938]
[1745322294911,1.23586179,88445.0,88444.0,92.93142938]
[1745322295590,1.23486179,88445.0,88444.0,92.93142938]
[1745322296194,1.12082179,88445.0,88444.0,92.93142938]
[1745322296400,1.23410179,88445.0,88444.0,92.93142938]
[1745322299104,1.11982179,88445.0,88444.0,92.93142938]
[1745322299283,1.23310179,88445.0,88444.0,92.93142938]
[1745322302130,1.34685384,88445.0,88444.0,92.93142938]
[1745322302357,1.23310179,88445.0,88444.0,92.93217738]
[1745322307236,1.24365256,88445.0,88444.0,92.93217738]
[1745322309103,0.49615256,88445.0,88444.0,92.93217738]
[1745322309848,0.49115256,88445.0,88444.0,92.93217738]
[1745322310281,0.48615256,88445.0,88444.0,92.93117738]
[1745322310563,0.48715256,88445.0,88444.0,92.93117738]
[1745322311347,0.48715256,88445.0,88444.0,92.97807738]
[1745322311910,0.48615256,88445.0,88444.0,93.02367738]
[1745322312323,0.48125679,88445.0,88444.0,93.02367738]
[1745322313360,0.47070602,88445.0,88444.0,93.02367738]
[1745322314546,0.11675594,88445.0,88444.0,93.02367738]
[1745322317725,0.11675594,88445.0,88444.0,92.78117823]
[1745322319128,0.11675594,88445.0,88444.0,92.78217823]
[1745322320403,0.11575594,88445.0,88444.0,92.78217823]
[1745322320873,0.11475594,88445.0,88444.0,92.78217823]
[1745322322101,0.11575594,88445.0,88444.0,92.78317823]
[1745322322239,0.11675594,88445.0,88444.0,92.78317823]
[1745322324280,0.35742602,88445.0,88444.0,92.78317823]
[1745322324655,0.35742602,88445.0,88444.0,92.73627823]
[1745322329014,0.11675594,88445.0,88444.0,92.78537823]
[1745322329436,0.34288517,88445.0,88444.0,92.78537823]
[1745322330890,0.34188517,88445.0,88444.0,92.78437823]
[1745322331982,0.11575594,88445.0,88444.0,92.78437823]
[1745322335475,0.11575594,88445.0,88444.0,93.01151001]
[1745322336250,0.11475594,88445.0,88444.0,93.01151001]
[1745322336469,0.11375594,88445.0,88444.0,93.01051001]
[1745322336698,0.11575594,88445.0,88444.0,93.01351001]
[1745322337070,0.11475594,88445.0,88444.0,93.01051001]
[1745322337272,0.11575594,88445.0,88444.0,93.01351001]
[1745322337981,0.11475594,88445.0,88444.0,93.01351001]
[1745322338279,0.11575594,88445.0,88444.0,93.01651001]
[1745322342291,0.002,88445.0,88444.0,93.01651001]
[1745322347994,0.0113039,88465.0,88458.0,0.22609591]
[1745322348217,0.11375594,88464.0,88459.0,0.00710514]
[1745322348381,0.11375594,88464.0,88460.0,0.00226073]
[1745322348593,0.11375594,88464.0,88463.0,0.0497]
[1745322349368,0.11375594,88464.0,88463.0,0.27578322]
[1745322349559,0.11375594,88464.0,88463.0,0.0497]
[1745322350300,0.11375594,88464.0,88463.0,0.0507]
[1745322351080,0.11475594,88464.0,88463.0,0.0507]
[1745322351792,0.11475594,88464.0,88463.0,0.05316411]
[1745322352126,0.11475594,88464.0,88463.0,0.00346411]
[1745322353671,0.35537745,88464.0,88463.0,0.00346411]
[1745322353869,0.40327745,88464.0,88463.0,0.00346411]
[1745322354073,0.01130543,88453.0,88446.0,0.2261245]
[1745322354245,0.11375594,88452.0,88446.0,0.2261245]
[1745322354464,0.11375594,88452.0,88447.0,0.00448241]
[1745322354673,0.11375594,88452.0,88447.0,0.23060529]
[1745322355435,0.11375594,88452.0,88448.0,0.2261205]
[1745322355642,0.11375594,88452.0,88447.0,0.23060529]
[1745322355835,0.11375594,88452.0,88449.0,0.0045245]
[1745322356175,0.11475594,88452.0,88450.0,0.0045245]
[1745322356320,0.11375594,88452.0,88450.0,0.22611624]
[1745322356515,0.11375594,88452.0,88451.0,0.23063839]
[1745322356722,0.11475594,88452.0,88451.0,0.23063839]
[1745322356958,0.11375594,88452.0,88451.0,0.23063839]
[1745322357282,0.11475594,88452.0,88451.0,0.23063839]
[1745322357634,0.11375594,88452.0,88451.0,0.23063839]
[1745322357836,0.11375594,88452.0,88451.0,0.23263839]
[1745322358045,0.11375594,88452.0,88451.0,0.23363839]
[1745322358366,0.11375594,88452.0,88451.0,0.0075245]
[1745322358559,0.11375594,88452.0,88451.0,0.23363839]
[1745322359131,0.11375594,88452.0,88451.0,0.0075245]
[1745322359896,0.11375594,88452.0,88451.0,0.23363839]
[1745322360510,0.11375594,88452.0,88451.0,0.0075245]
[1745322364770,0.11375594,88452.0,88451.0,0.23589941]
[1745322364945,0.11375594,88452.0,88451.0,0.28093839]
[1745322381784,0.02584373,88473.0,88465.0,0.22607647]
[1745322381998,0.34,88471.0,88465.0,0.22607647]
[1745322382146,0.34,88469.0,88466.0,0.00449977]
[1745322382353,0.34,88467.0,88466.0,0.00449977]
[1745322382674,0.45375594,88467.0,88466.0,0.00450139]
[1745322382814,0.45375594,88467.0,88465.0,0.22607715]
[1745322383011,0.11375594,88466.0,88463.0,0.22608272]
[1745322384250,0.11375594,88466.0,88461.0,0.22608584]
[1745322384475,0.11475594,88466.0,88461.0,0.22608584]
[1745322385075,0.11475594,88466.0,88461.0,0.22290889]
[1745322385276,0.11375594,88466.0,88460.0,0.15927329]
[1745322385474,0.11475594,88466.0,88460.0,0.38536362]
[1745322385820,0.11375594,88466.0,88460.0,0.38536362]
[1745322385972,0.11475594,88466.0,88460.0,0.38536362]
[1745322386732,0.11375594,88466.0,88460.0,0.38536362]
[1745322387069,0.11475594,88466.0,88460.0,0.38536362]
[1745322387322,0.11375594,88466.0,88460.0,0.38536362]
[1745322387539,0.11475594,88466.0,88460.0,0.38536362]
[1745322389231,0.11475594,88466.0,88461.0,0.22608724]
[1745322390199,0.11275594,88466.0,88462.0,0.00449987]
[1745322390419,0.11275594,88466.0,88463.0,0.0037499]
[1745322390623,0.11375594,88466.0,88462.0,0.22608577]
[1745322390823,0.11375594,88466.0,88463.0,0.22983226]
[1745322391443,0.11375594,88466.0,88465.0,0.2260781]
[1745322391844,0.11475594,88466.0,88465.0,0.22983465]
[1745322392223,0.11675594,88466.0,88465.0,0.22983465]
[1745322392438,0.004,88466.0,88465.0,0.32413465]
[1745322392642,0.004,88466.0,88465.0,0.32513465]
[1745322393261,0.002,88466.0,88465.0,0.32513465]
[1745322393481,0.0008454,88481.0,88480.0,0.22603978]
[1745322393675,0.11460134,88481.0,88480.0,0.22603978]
[1745322393880,0.11460134,88481.0,88480.0,0.22968752]
[1745322394346,0.11460134,88481.0,88480.0,0.00364774]
[1745322394681,0.11471451,88481.0,88477.0,0.22604662]
[1745322395020,0.11375594,88480.0,88478.0,0.22604422]
[1745322395179,0.11375594,88480.0,88477.0,0.23750284]
[1745322396028,0.11375594,88480.0,88478.0,0.2260433]
[1745322396893,0.11475594,88480.0,88478.0,0.2260433]
[1745322397519,0.11675594,88480.0,88478.0,0.22604452]
[1745322397871,0.11675594,88480.0,88479.0,0.22604233]
[1745322398080,0.11675594,88480.0,88479.0,0.22956593]
[1745322399697,0.11475594,88480.0,88479.0,0.22956593]
[1745322399990,0.11575594,88480.0,88479.0,0.22956593]
[1745322400354,0.11775594,88480.0,88479.0,0.22956593]
[1745322411682,0.16525594,88480.0,88479.0,0.22956593]
[1745322413990,0.11775594,88480.0,88479.0,0.22956593]
[1745322414482,0.11775594,88480.0,88479.0,0.23197792]
[1745322415631,0.11775594,88480.0,88479.0,0.00593559]
[1745322415841,0.11775594,88480.0,88479.0,0.23197792]
[1745322416068,0.11775594,88480.0,88479.0,0.23285876]
[1745322416933,0.11775594,88480.0,88479.0,0.00681643]
[1745322420827,0.40583657,88480.0,88479.0,0.00681643]
[1745322421193,0.22606036,88472.0,88463.0,0.24915068]
[1745322421403,0.22606036,88472.0,88464.0,0.01130403]
[1745322421404,0.11375594,88471.0,88464.0,0.01130403]
[1745322421610,0.33981883,88471.0,88464.0,0.23149168]
[1745322421792,0.11375594,88471.0,88465.0,0.23738162]
[1745322421999,0.11375594,88471.0,88466.0,0.01130377]
[1745322422201,0.12505907,88471.0,88465.0,0.22607772]
[1745322422467,0.12505907,88471.0,88467.0,0.22607216]
[1745322422468,0.11375594,88471.0,88467.0,0.22607216]
[1745322423095,0.11375594,88471.0,88468.0,0.22606972]
[1745322423272,0.11475594,88471.0,88468.0,0.22606972]
[1745322423611,0.11375594,88471.0,88467.0,0.2260708]
[1745322424039,0.11475594,88471.0,88468.0,0.22607003]
[1745322424367,0.11475594,88471.0,88467.0,0.24037444]
[1745322424556,0.11475594,88471.0,88467.0,0.2290708]
[1745322424756,0.11475594,88471.0,88468.0,0.0052699]
[1745322425808,0.11375594,88471.0,88468.0,0.23133994]
[1745322426106,0.11375594,88471.0,88468.0,0.0052699]
[1745322426339,0.11375594,88471.0,88468.0,0.0032699]
[1745322426548,0.11475594,88471.0,88468.0,0.0052699]
[1745322426815,0.11475594,88471.0,88468.0,0.23134023]
[1745322427051,0.11475594,88471.0,88468.0,0.0052699]
[1745322427201,0.11475594,88471.0,88468.0,0.0072699]
[1745322427410,0.11475594,88471.0,88468.0,0.23333893]
[1745322427604,0.11475594,88471.0,88470.0,0.22606533]
[1745322427931,0.11475594,88471.0,88470.0,0.00327245]
[1745322428331,0.11475594,88471.0,88470.0,0.22933778]
[1745322429204,0.11375594,88471.0,88470.0,0.22933778]
[1745322429650,0.11375594,88471.0,88470.0,0.23233778]
[1745322430022,0.11375594,88471.0,88470.0,0.00627245]
[1745322431066,0.11375594,88471.0,88470.0,0.23233778]
[1745322435441,0.11375594,88471.0,88470.0,0.23454037]
[1745322443529,0.01057267,88478.0,88477.0,0.22604744]
[1745322443753,0.12432861,88478.0,88477.0,0.22604744]
[1745322443947,0.12432861,88478.0,88477.0,0.23184811]
[1745322444123,0.00095857,88481.0,88480.0,0.22603978]
[1745322444346,0.11471451,88481.0,88480.0,0.22829969]
[1745322444546,0.11471451,88481.0,88480.0,0.56829969]
[1745322444786,0.11471451,88481.0,88480.0,0.56603978]
[1745322445532,0.11471451,88481.0,88480.0,0.61533978]
[1745322446406,0.00095857,88481.0,88480.0,0.61533978]
[1745322446596,0.00195857,88481.0,88480.0,0.61533978]
[1745322447632,0.00195857,88481.0,88480.0,0.61854741]
[1745322448421,0.00095857,88481.0,88480.0,1.03524741]
[1745322448624,0.00095857,88481.0,88480.0,1.08454741]
[1745322448832,0.00095857,88481.0,88480.0,1.08554741]
[1745322449639,0.00095857,88481.0,88480.0,1.08454741]
[1745322449840,0.00095857,88481.0,88480.0,1.08654741]
[1745322450073,0.00095857,88481.0,88480.0,1.08854741]
[1745322450254,0.00095857,88481.0,88480.0,1.09126838]
[1745322454559,0.0008456,88492.0,88491.0,0.56601168]
[1745322454764,0.0008456,88492.0,88491.0,0.66361168]
[1745322455120,0.0008456,88492.0,88491.0,0.66943375]
[1745322456726,0.0018456,88492.0,88491.0,0.66943375]
[1745322460190,0.0018456,88492.0,88491.0,1.08613375]
[1745322462989,0.0008456,88492.0,88491.0,1.08613375]
[1745322463334,0.0008456,88492.0,88491.0,1.08813375]
[1745322463488,0.0008456,88492.0,88491.0,1.08613375]
[1745322463902,0.0008456,88492.0,88491.0,1.08813375]
[1745322464692,0.0008456,88492.0,88491.0,1.09213375]
[1745322464905,0.000845,88516.0,88515.0,0.5659504]
[1745322465101,0.000423,88528.0,88518.0,0.34]
[1745322465310,0.000423,88528.0,88518.0,0.57148796]
[1745322465510,0.00051322,88519.0,88518.0,0.57148796]
[1745322466027,0.00051322,88519.0,88518.0,0.98818796]
[1745322466524,0.00151322,88519.0,88518.0,0.98818796]
[1745322468020,0.00151322,88519.0,88518.0,0.99994517]
[1745322468171,0.00351322,88519.0,88518.0,0.99994517]
[1745322471868,0.00351322,88519.0,88518.0,1.10094517]
[1745322473361,0.00351322,88519.0,88518.0,0.8534502]
[1745322473999,0.00351322,88519.0,88518.0,0.65994517]
[1745322485915,0.00351322,88519.0,88518.0,1.10050517]
[1745322496917,0.000423,88528.0,88527.0,0.22591977]
[1745322497120,0.000423,88530.0,88527.0,0.22591977]
[1745322497121,0.000423,88530.0,88529.0,0.22591467]
[1745322497286,0.000423,88530.0,88529.0,1.58330318]
[1745322497642,0.000423,88530.0,88529.0,1.58104467]
[1745322498005,0.000423,88530.0,88529.0,0.56591467]
[1745322498805,0.001423,88530.0,88529.0,0.56591467]
[1745322499241,0.000423,88530.0,88529.0,0.56591467]
[1745322500776,0.000423,88530.0,88529.0,0.56897127]
[1745322501211,0.000423,88530.0,88529.0,0.98667127]
[1745322503178,1e-08,88534.0,88533.0,0.56590446]
[1745322503401,1e-08,88534.0,88533.0,0.98260446]
[1745322503616,1e-08,88534.0,88533.0,0.98563695]
[1745322504515,1e-08,88534.0,88533.0,0.98663695]
[1745322504722,0.000845,88555.0,88548.0,0.56586619]
[1745322504977,1e-08,88549.0,88548.0,0.56888477]
[1745322505181,0.00045511,88549.0,88548.0,0.56888477]
[1745322506376,0.00145511,88549.0,88548.0,0.56888477]
[1745322507208,0.00145511,88549.0,88548.0,0.98558477]
[1745322507365,0.0008,88564.0,88563.0,0.22582794]
[1745322507587,0.00093648,88564.0,88563.0,0.98252794]
[1745322507794,0.00093648,88564.0,88563.0,0.98555419]
[1745322509522,0.00393648,88564.0,88563.0,0.98555419]
[1745322510070,0.00693648,88564.0,88563.0,0.98555419]
[1745322510277,0.00693648,88564.0,88563.0,0.98710231]
[1745322510484,0.003,88564.0,88563.0,0.98710231]
[1745322510693,1e-08,88564.0,88563.0,0.82299895]
[1745322511107,1e-08,88564.0,88563.0,0.99912689]
[1745322511517,0.0008454,88581.0,88569.0,0.22581264]
[1745322511872,0.0008454,88581.0,88569.0,0.2303332]
[1745322512808,0.0028454,88570.0,88569.0,0.5703332]
[1745322513016,0.0028454,88570.0,88569.0,0.9870332]
[1745322514211,0.0048454,88570.0,88569.0,0.9870332]
[1745322521009,0.11860134,88570.0,88569.0,0.76122056]
[1745322521233,0.11860134,88570.0,88569.0,0.9870332]
[1745322522074,0.11860134,88570.0,88569.0,0.6470332]
[1745322523146,0.21150134,88570.0,88569.0,0.6470332]
[1745322524755,0.21250134,88570.0,88569.0,0.42122056]
[1745322526527,0.21250134,88570.0,88569.0,0.6470332]
[1745322527649,0.21250134,88570.0,88569.0,0.2303332]
[1745322533207,0.11960134,88570.0,88569.0,0.2303332]
[1745322534414,0.0058454,88570.0,88569.0,0.2303332]
[1745322539498,0.0058454,88570.0,88569.0,0.6470332]
[1745322543137,0.11960134,88570.0,88569.0,0.6470332]
[1745322543350,0.11960134,88570.0,88569.0,0.42122056]
[1745322543554,0.16950134,88570.0,88569.0,0.6470332]
[1745322543749,0.16950134,88570.0,88569.0,0.22581264]
[1745322545513,0.11960134,88570.0,88569.0,0.22581264]
[1745322552571,0.0058454,88570.0,88569.0,0.22581264]
[1745322561172,0.11960134,88570.0,88569.0,0.22581264]
[1745322568992,0.16540134,88570.0,88569.0,0.22581264]
[1745322570952,0.16440134,88570.0,88569.0,0.22581264]
[1745322571353,0.16240134,88570.0,88569.0,0.22581264]
[1745322571934,0.16340134,88570.0,88569.0,0.22581264]
[1745322572156,0.01129063,88569.0,88564.0,0.22582539]
[1745322572358,0.11375594,88568.0,88565.0,0.22582066]
[1745322572558,0.11375594,88568.0,88566.0,0.22581894]
[1745322572938,0.11375594,88568.0,88567.0,0.22581774]
[1745322573194,0.11375594,88568.0,88566.0,0.22581894]
[1745322575251,0.11675594,88568.0,88566.0,0.22581894]
[1745322575475,0.11575594,88568.0,88566.0,0.22581894]
[1745322575854,0.11675594,88568.0,88566.0,0.22581894]
[1745322576053,0.11675594,88568.0,88567.0,0.22581774]
[1745322577919,0.11575594,88568.0,88567.0,0.22581774]
[1745322578519,0.11475594,88568.0,88567.0,0.22581774]
[1745322578911,0.11675594,88568.0,88567.0,0.22581774]
[1745322579109,0.11675594,88568.0,88566.0,0.21826719]
[1745322580140,0.11475594,88568.0,88566.0,0.21826719]
[1745322580348,0.11675594,88568.0,88567.0,0.22581774]
[1745322581094,0.11575594,88568.0,88567.0,0.22581774]
[1745322581310,0.11675594,88568.0,88567.0,0.22581774]
[1745322581804,0.11375594,88568.0,88567.0,0.22581774]
[1745322581930,0.11475594,88568.0,88567.0,0.22581774]
[1745322582137,0.11675594,88568.0,88567.0,0.22581774]
[1745322586748,0.11675594,88568.0,88566.0,0.19541518]
[1745322587046,0.11675594,88568.0,88567.0,0.22581774]
[1745322587609,0.11575594,88568.0,88567.0,0.22581774]
[1745322588493,0.11375594,88568.0,88567.0,0.22581774]
[1745322588798,0.11675594,88568.0,88567.0,0.22581774]
[1745322588967,0.11575594,88568.0,88567.0,0.22581774]
[1745322589113,0.11475594,88568.0,88567.0,0.22581774]
[1745322589512,0.11675594,88568.0,88567.0,0.22581774]
[1745322596289,0.11675594,88568.0,88567.0,0.22807575]
[1745322596290,0.003,88568.0,88567.0,0.22807575]
[1745322597656,0.0008454,88570.0,88569.0,0.22581264]
[1745322597852,0.0008454,88570.0,88569.0,0.22807032]
[1745322598052,0.0008454,88570.0,88569.0,0.22581264]
[1745322598260,0.0008454,88570.0,88569.0,0.22807032]
[1745322598602,0.0008454,88570.0,88569.0,0.22581264]
[1745322599228,0.0018454,88570.0,88569.0,0.22581264]
[1745322603169,0.0018454,88570.0,88569.0,0.22807033]
[1745322604267,0.0018454,88570.0,88569.0,0.22581264]
[1745322611217,0.0018454,88570.0,88569.0,0.22516964]
[1745322625914,0.0018454,88570.0,88568.0,0.22581519]
[1745322626113,0.0018454,88570.0,88569.0,0.22581264]
[1745322626318,0.0018454,88570.0,88569.0,0.22807037]
[1745322626797,0.0008454,88570.0,88569.0,0.22807037]
[1745322627011,0.0018454,88570.0,88569.0,0.22807037]
[1745322627611,0.0008454,88570.0,88569.0,0.22807037]
[1745322629542,0.0018454,88570.0,88569.0,0.22807037]
[1745322631384,0.0018454,88570.0,88569.0,0.23908535]
[1745322631521,0.0018454,88570.0,88569.0,0.23682762]
[1745322648793,0.0018454,88570.0,88569.0,0.57682762]
[1745322650826,0.0018454,88570.0,88569.0,0.99352762]
[1745322655586,0.0018454,88570.0,88569.0,1.04102762]
[1745322661049,0.0018454,88570.0,88569.0,0.75733228]
[1745322661203,0.0018454,88570.0,88569.0,0.76591105]
[1745322662268,0.0018454,88570.0,88569.0,0.99172369]
[1745322664963,0.0008454,88570.0,88569.0,0.99172369]
[1745322665371,0.0018454,88570.0,88569.0,0.99172369]
[1745322666452,0.0005614,88571.0,88570.0,0.56581009]
[1745322666652,0.0005614,88571.0,88570.0,0.5674747]
[1745322667056,0.0004,88579.0,88578.0,0.56578969]
[1745322667255,0.00044546,88579.0,88578.0,0.56578969]
[1745322668382,0.06386909,88600.0,88593.0,0.56575147]
[1745322668383,0.01646909,88600.0,88593.0,0.56575147]
[1745322668605,0.00084546,88594.0,88593.0,0.98245147]
[1745322668805,0.00084546,88594.0,88593.0,0.98991479]
[1745322669010,0.00084546,88594.0,88593.0,1.00121429]
[1745322669627,0.00184546,88594.0,88593.0,1.00121429]
[1745322670250,0.00184546,88594.0,88593.0,1.00282443]
[1745322670880,0.00084546,88594.0,88593.0,1.00282443]
[1745322681978,0.1617014,88594.0,88593.0,0.43707296]
[1745322682273,0.38845032,88594.0,88593.0,0.00907346]
[1745322682692,0.38845032,88594.0,88585.0,0.23705947]
[1745322682693,0.01128757,88593.0,88586.0,0.2257693]
[1745322682903,0.12504364,88592.0,88586.0,0.2257693]
[1745322683241,0.12504364,88592.0,88587.0,0.0090372]
[1745322683437,0.0471,88591.0,88587.0,0.23480347]
[1745322683677,0.11375594,88590.0,88587.0,0.23480347]
[1745322684358,0.11375594,88590.0,88587.0,0.0090372]
[1745322684783,0.11575594,88590.0,88587.0,0.0090372]
[1745322685219,0.11575594,88590.0,88589.0,0.22576166]
[1745322685982,0.11775594,88590.0,88589.0,0.22576166]
[1745322686165,0.11575594,88590.0,88589.0,0.22742253]
[1745322686367,0.11675594,88590.0,88589.0,0.22742253]
[1745322686506,0.11975594,88590.0,88589.0,0.22742253]
[1745322690355,0.11975594,88590.0,88589.0,0.23476983]
[1745322699075,0.006,88590.0,88589.0,0.23476983]
[1745322700274,0.006,88590.0,88589.0,0.57476983]
[1745322700601,0.003,88590.0,88589.0,0.57476983]
[1745322701251,0.00084546,88594.0,88593.0,0.22575147]
[1745322701441,0.1146014,88594.0,88593.0,0.22575147]
[1745322701657,0.1146014,88594.0,88593.0,0.23475644]
[1745322702927,0.1156014,88594.0,88593.0,0.23475644]
[1745322706545,0.1632014,88594.0,88593.0,0.23475644]
[1745322708294,0.1642014,88594.0,88593.0,0.23475644]
[1745322708845,0.1632014,88594.0,88593.0,0.23475644]
[1745322709083,0.1642014,88594.0,88593.0,0.23475644]
[1745322715629,0.1166014,88594.0,88593.0,0.23475644]
[1745322717428,0.00284546,88594.0,88593.0,0.57475644]
[1745322719665,0.00184546,88594.0,88593.0,0.57475644]
[1745322720203,0.00084546,88594.0,88593.0,0.57475644]
[1745322722404,0.1146014,88594.0,88593.0,0.57475644]
[1745322722589,0.1146014,88594.0,88593.0,0.23475644]
[1745322726491,0.38895032,88594.0,88593.0,0.00900497]
[1745322726740,0.43865032,88594.0,88593.0,0.00900497]
[1745322727181,0.0476,88582.0,88579.0,0.01128935]
[1745322727400,0.0476,88582.0,88578.0,0.22578829]
[1745322727401,0.11375594,88581.0,88578.0,0.22578829]
[1745322727618,0.11375594,88581.0,88580.0,0.00901005]
[1745322727857,0.01240425,88594.0,88587.0,0.01128833]
[1745322728100,0.11375594,88593.0,88589.0,0.22576089]
[1745322728297,0.05888821,88588.0,88581.0,0.0112891]
[1745322728510,0.11375594,88587.0,88586.0,0.2257693]
[1745322728948,0.11375594,88587.0,88583.0,0.22577695]
[1745322729186,0.11375594,88587.0,88585.0,0.2257704]
[1745322729446,0.11375594,88587.0,88586.0,0.2257693]
[1745322730617,0.11375594,88587.0,88586.0,0.22745933]
[1745322731272,0.11375594,88587.0,88586.0,0.56745933]
[1745322731475,0.00184546,88594.0,88593.0,0.22575147]
[1745322731619,0.12688884,88594.0,88589.0,0.22576166]
[1745322731832,0.11375594,88593.0,88584.0,0.22577219]
[1745322732087,0.11375594,88593.0,88587.0,0.22576426]
[1745322732293,0.11375594,88593.0,88590.0,0.22575872]
[1745322732715,0.11375594,88593.0,88591.0,0.23319083]
[1745322733718,0.11375594,88593.0,88592.0,0.22575401]
[1745322734055,0.11375594,88593.0,88592.0,0.2331883]
[1745322734261,0.11575594,88593.0,88592.0,0.23489358]
[1745322734617,0.11675594,88593.0,88592.0,0.23489358]
[1745322734819,0.11575594,88593.0,88592.0,0.23489358]
[1745322735016,0.11775594,88593.0,88592.0,0.23489358]
[1745322736018,0.11575594,88593.0,88592.0,0.23489358]
[1745322736262,0.11575594,88593.0,88592.0,0.57489358]
[1745322736263,0.002,88593.0,88592.0,0.57489358]
[1745322736470,0.004,88593.0,88592.0,0.57489358]
[1745322737301,0.002,88593.0,88592.0,0.57489358]
[1745322737505,0.00184546,88594.0,88593.0,0.56575147]
[1745322737865,0.00184546,88594.0,88593.0,0.57478661]
[1745322740674,0.1156014,88594.0,88593.0,0.57478661]
[1745322740861,0.38815032,88594.0,88593.0,0.00903514]
[1745322741041,0.1624014,88594.0,88593.0,0.00903514]
[1745322741849,0.1624014,88594.0,88593.0,0.23478661]
[1745322742065,0.1156014,88594.0,88593.0,0.23478661]
[1745322742911,0.1156014,88594.0,88593.0,0.00903514]
[1745322743575,0.1156014,88594.0,88593.0,0.23478661]
[1745322746724,0.1156014,88594.0,88593.0,0.00903514]
[1745322747561,0.1156014,88594.0,88593.0,0.23478661]
[1745322750899,0.1146014,88594.0,88593.0,0.23478661]
[1745322758464,0.1146014,88594.0,88593.0,0.00903514]
[1745322758672,0.1146014,88594.0,88593.0,0.23478661]
[1745322762412,0.34035032,88594.0,88593.0,0.00903514]
[1745322762671,0.1146014,88594.0,88593.0,0.00903514]
[1745322762867,0.1146014,88594.0,88593.0,0.23478661]
[1745322769219,0.1146014,88594.0,88593.0,0.0090022]
[1745322770010,0.1146014,88594.0,88593.0,0.23475367]
[1745322770640,0.1146014,88594.0,88593.0,0.0090022]
[1745322771191,0.1146014,88594.0,88593.0,0.23475367]
[1745322772019,0.1146014,88594.0,88593.0,0.0090022]
[1745322772247,0.1146014,88594.0,88593.0,0.23475367]
[1745322772901,0.1146014,88594.0,88593.0,0.0090022]
[1745322773935,0.1146014,88594.0,88593.0,0.23475367]
[1745322774982,0.1146014,88594.0,88593.0,0.0090022]
[1745322775385,0.1146014,88594.0,88591.0,0.22575477]
[1745322775592,0.11375594,88593.0,88592.0,0.22575401]
[1745322776816,0.11375594,88593.0,88591.0,0.22575477]
[1745322777165,0.11375594,88593.0,88592.0,0.00504154]
[1745322779740,0.11375594,88593.0,88592.0,0.00420128]
[1745322780075,0.11375594,88593.0,88590.0,0.22575877]
[1745322780633,0.11375594,88593.0,88591.0,0.00420396]
[1745322781392,0.11375594,88593.0,88585.0,0.01128859]
[1745322781598,0.11375594,88593.0,88589.0,0.22575951]
[1745322781798,0.11375594,88593.0,88588.0,0.22576319]
[1745322782011,0.11375594,88593.0,88590.0,0.00422109]
[1745322782214,0.11375594,88593.0,88588.0,0.22576319]
[1745322782634,0.11375594,88593.0,88589.0,0.22576067]
[1745322782835,0.11375594,88593.0,88589.0,0.22998176]
[1745322783212,0.11375594,88593.0,88590.0,0.22575812]
[1745322783412,0.11375594,88593.0,88589.0,0.00422109]
[1745322783525,0.11375594,88593.0,88587.0,0.22576676]
[1745322783526,0.11375594,88593.0,88591.0,0.00422276]
[1745322783878,0.11375594,88593.0,88589.0,0.22576023]
[1745322784109,0.11375594,88593.0,88589.0,0.22676023]
[1745322784293,0.12504351,88593.0,88590.0,0.00422089]
[1745322784464,0.33950801,88593.0,88590.0,0.00422089]
[1745322784644,0.12504351,88593.0,88590.0,0.00422089]
[1745322784915,0.0112877,88592.0,88591.0,0.00422033]
[1745322785114,0.35079765,88592.0,88591.0,0.00422033]
[1745322785322,0.01128795,88590.0,88585.0,0.22576954]
[1745322785526,0.22575749,88591.0,88585.0,0.22576954]
[1745322785527,0.11375594,88589.0,88585.0,0.22576954]
[1745322785881,0.11375594,88589.0,88586.0,0.237056]
[1745322786119,0.11375594,88589.0,88587.0,0.22576474]
[1745322786557,0.11375594,88589.0,88588.0,0.22576421]
[1745322786869,0.11375594,88589.0,88587.0,0.22576474]
[1745322787638,0.11375594,88589.0,88588.0,0.001]
[1745322787795,0.11375594,88589.0,88588.0,0.002]
[1745322787996,0.11375594,88589.0,88588.0,0.001]
[1745322788933,0.11375594,88589.0,88588.0,0.002]
[1745322789133,0.11375594,88589.0,88588.0,0.22676421]
[1745322789331,0.11375594,88589.0,88588.0,0.001]
[1745322790315,0.11375594,88589.0,88588.0,0.002]
[1745322791717,0.11375594,88589.0,88588.0,0.22776421]
[1745322792828,0.11375594,88589.0,88588.0,0.002]
[1745322792988,0.11375594,88589.0,88585.0,0.23705906]
[1745322793389,0.11375594,88589.0,88586.0,0.2257693]
[1745322793587,0.11375594,88589.0,88587.0,0.22576595]
[1745322794131,0.11375594,88589.0,88586.0,0.2257693]
[1745322794850,0.11375594,88589.0,88587.0,0.22576619]
[1745322795206,0.11375594,88589.0,88588.0,0.22576421]
[1745322795409,0.11375594,88589.0,88588.0,0.22998321]
[1745322796173,0.00084546,88594.0,88593.0,0.22575147]
[1745322796365,0.1146014,88594.0,88593.0,0.22575147]
[1745322796565,0.1146014,88594.0,88593.0,0.56575147]
[1745322796979,0.1146014,88594.0,88593.0,0.56996638]
[1745322797608,0.1156014,88594.0,88593.0,0.56996638]
[1745322799069,0.1166014,88594.0,88593.0,0.56996638]
[1745322808169,0.1166014,88594.0,88593.0,0.00421491]
[1745322808520,0.1166014,88594.0,88589.0,0.22576153]
[1745322808726,0.11375594,88593.0,88590.0,0.22992281]
[1745322808906,0.11375594,88593.0,88590.0,0.0041637]
[1745322809301,0.11375594,88593.0,88589.0,0.2257613]
[1745322809620,0.11375594,88593.0,88590.0,0.00416429]
[1745322810397,0.22575656,88591.0,88590.0,0.00416429]
[1745322810602,0.01128808,88589.0,88584.0,0.34]
[1745322810839,0.11375594,88588.0,88587.0,0.22576676]
[1745322811252,0.11375594,88588.0,88587.0,0.22995513]
[1745322812148,0.11375594,88588.0,88587.0,0.23095513]
[1745322813233,0.11375594,88588.0,88587.0,0.23195513]
[1745322835735,0.11375594,88588.0,88587.0,0.23287936]
[1745322836596,0.00084546,88594.0,88593.0,0.22575147]
[1745322836816,0.1146014,88594.0,88593.0,0.22575147]
[1745322837005,0.1146014,88594.0,88593.0,0.23090244]
[1745322837208,0.1146014,88594.0,88593.0,0.00515097]
[1745322837924,0.1156014,88594.0,88593.0,0.00515097]
[1745322838903,0.1166014,88594.0,88593.0,0.00515097]
[1745322839931,0.1166014,88594.0,88591.0,0.22575444]
[1745322840101,0.11375594,88593.0,88592.0,0.00093693]
[1745322840443,0.11375594,88593.0,88592.0,0.23089627]
[1745322842502,0.11375594,88593.0,88592.0,0.00514226]
[1745322842625,0.49715737,88593.0,88592.0,0.00514226]
[1745322842829,0.23706548,88584.0,88578.0,0.01136518]
[1745322843047,0.11375594,88583.0,88578.0,0.01136518]
[1745322843254,0.11375594,88583.0,88580.0,0.2257846]